fUSD/lending_fUSD_20251123
["ID","MTS","AMOUNT","RATE_DAILY","PERIOD"]
[394721964,1763916640603,-500.0,0.00016899,2]
[394721965,1763916640612,-500.0,0.00016899,2]
[394721967,1763916640621,-500.0,0.00016899,2]
[394721969,1763916640631,-500.0,0.00016899,2]
[394721971,1763916640639,-500.0,0.00016899,2]
[394721973,1763916640650,-500.0,0.00016899,2]
[394721975,1763916640659,-500.0,0.00016899,2]
[394721977,1763916640668,-500.0,0.00016899,2]
[394721979,1763916640677,-500.0,0.00016899,2]
[394721981,1763916640686,-449.99999997,0.00016899,2]
[394721983,1763916640696,-500.0,0.00016899,2]
[394721985,1763916640705,-500.0,0.00016899,2]
[394721987,1763916640714,-500.0,0.00016899,2]
[394721989,1763916640724,-500.0,0.00016899,2]
[394721991,1763916640733,-500.0,0.00016899,2]
[394721993,1763916640743,-500.0,0.00016899,2]
[394721996,1763916640753,-500.0,0.00016899,2]
[394721998,1763916640763,-500.0,0.00016899,2]
[394722000,1763916640772,-500.0,0.00016899,2]
[394722002,1763916640781,-500.0,0.00016899,2]
[394722004,1763916640790,-500.0,0.00016899,2]
[394722006,1763916640799,-548.56116469,0.00016899,2]
[394722008,1763916640808,-548.56116469,0.00016899,2]
[394722010,1763916640817,-548.56116469,0.00016899,2]
[394722012,1763916640827,-548.56116469,0.00016899,2]
[394722013,1763916640835,-548.56116469,0.00016899,2]
[394722015,1763916640845,-548.56116469,0.00016899,2]
[394722017,1763916640854,-548.56116469,0.00016899,2]
[394722018,1763916640863,-548.56116469,0.00016899,2]
[394722019,1763916640874,-548.56116469,0.00016899,2]
[394722020,1763916640883,-548.56116469,0.00016899,2]
[394722021,1763916640893,-548.56116469,0.00016899,2]
[394722022,1763916640902,-548.56116469,0.00016899,2]
[394722023,1763916640911,-548.56116469,0.00016899,2]
[394722024,1763916640920,-548.56116469,0.00016899,2]
[394722025,1763916640930,-548.56116469,0.00016899,2]
[394722026,1763916640939,-548.56116469,0.00016899,2]
[394722027,1763916640949,-548.56116469,0.00016899,2]
[394722028,1763916640958,-548.56116469,0.00016899,2]
[394722029,1763916640968,-548.56116469,0.00016899,2]
[394722030,1763916640977,-548.56116469,0.00016899,2]
[394722031,1763916640987,-548.56116469,0.00016899,2]
[394722032,1763916640996,-548.56116469,0.00016899,2]
[394722033,1763916641005,-548.56116469,0.00016899,2]
[394722034,1763916641014,-548.56116469,0.00016899,2]
[394722035,1763916641024,-548.56116469,0.00016899,2]
[394722036,1763916641033,-548.56116469,0.00016899,2]
[394722037,1763916641043,-548.56116469,0.00016899,2]
[394722038,1763916641052,-548.56116469,0.00016899,2]
[394722039,1763916641062,-548.56116469,0.00016899,2]
[394722040,1763916641071,-548.56116469,0.00016899,2]
[394722041,1763916641080,-548.56116469,0.00016899,2]
[394722042,1763916641089,-548.56116469,0.00016899,2]
[394722043,1763916641099,-548.56116469,0.00016899,2]
[394722044,1763916641108,-548.56116469,0.00016899,2]
[394722045,1763916641117,-548.56116469,0.00016899,2]
[394722046,1763916641126,-548.56116469,0.00016899,2]
[394722047,1763916641136,-548.56116469,0.00016899,2]
[394722048,1763916641145,-548.56116469,0.00016899,2]
[394722049,1763916641155,-548.56116469,0.00016899,2]
[394722050,1763916641164,-548.56116469,0.00016899,2]
[394722051,1763916641173,-548.56116469,0.00016899,2]
[394722052,1763916641183,-548.56116469,0.00016899,2]
[394722054,1763916641195,-548.56116469,0.00016899,2]
[394722055,1763916641204,-548.56116469,0.00016899,2]
[394722056,1763916641214,-548.56116469,0.00016899,2]
[394722057,1763916641223,-548.56116469,0.00016899,2]
[394722058,1763916641233,-548.56116469,0.00016899,2]
[394722059,1763916641243,-548.56116469,0.00016899,2]
[394722060,1763916641252,-548.56116469,0.00016899,2]
[394722061,1763916641261,-548.56116469,0.00016899,2]
[394722062,1763916641271,-548.56116469,0.00016899,2]
[394722063,1763916641280,-500.0,0.00016899,2]
[394722064,1763916641289,-500.0,0.00016899,2]
[394722065,1763916641299,-500.0,0.00016899,2]
[394722066,1763916641309,-278.56426424,0.00016899,2]
[394722067,1763916641318,-500.0,0.00016899,2]
[394722068,1763916641327,-500.0,0.00016899,2]
[394722069,1763916641336,-500.0,0.00016899,2]
[394722070,1763916641346,-500.0,0.00016899,2]
[394722071,1763916641355,-579.49641626,0.00016899,2]
[394722072,1763916641365,-579.49641626,0.00016899,2]
[394722073,1763916641375,-579.49641626,0.00016899,2]
[394722074,1763916641384,-579.49641626,0.00016899,2]
[394722075,1763916641393,-579.49641626,0.00016899,2]
[394722076,1763916641402,-579.49641626,0.00016899,2]
[394722077,1763916641412,-579.49641626,0.00016899,2]
[394722078,1763916641421,-579.49641626,0.00016899,2]
[394722079,1763916641430,-579.49641626,0.00016899,2]
[394722080,1763916641439,-579.49641626,0.00016899,2]
[394722081,1763916641449,-579.49641626,0.00016899,2]
[394722082,1763916641458,-1315.4,0.00016899,2]
[394722083,1763916641467,-1315.4,0.00016899,2]
[394722084,1763916641476,-1315.4,0.00016899,2]
[394722085,1763916641486,-500.0,0.00016999,2]
[394722086,1763916641495,-500.0,0.00016999,2]
[394722087,1763916641504,-500.0,0.00016999,2]
[394722088,1763916641513,-500.0,0.00016999,2]
[394722089,1763916641522,-400.0,0.00017,2]
[394722090,1763916641531,-250.0,0.00017,2]
[394722091,1763916641540,-400.0,0.00017,6]
[394722092,1763916641550,-1539.88,0.00017164,2]
[394722093,1763916641559,-1539.88,0.00017438,2]
[394722094,1763916641569,-444.0,0.00017524,2]
[394722095,1763916641578,-386.80045172,0.00017535,2]
[394722096,1763916641587,-192.0,0.00017559,2]
[394722097,1763916641596,-300.0,0.00017573,2]
[394722098,1763916641606,-1539.88,0.00017712,2]
[394722099,1763916641615,-233.31011699,0.00017727,2]
[394722100,1763916641624,-597.56,0.00017727,2]
[394722101,1763916641634,-500.0,0.00017727,2]
[394722102,1763916641643,-9469.72,0.00017728,2]
[394722103,1763916641652,-414.79,0.00017728,2]
[394722104,1763916641661,-109230.0,0.00017728,2]
[394722105,1763916641670,-150.99,0.00017728,2]
[394722106,1763916641679,-1539.88,0.00017986,2]
[394722107,1763916641690,-400.0,0.00018,2]
[394722108,1763916641699,-400.0,0.00018,7]
[394722109,1763916641708,-329.0,0.00018012,2]
[394722110,1763916641717,-210.0,0.00018074,2]
[394722111,1763916641727,-318.0,0.00018074,2]
[394722112,1763916641736,-2500.0,0.00018127,2]
[394722113,1763916641745,-2500.0,0.00018211,2]
[394722114,1763916641755,-300.0,0.00018211,2]
[394722115,1763916641765,-195.0,0.00018211,2]
[394722116,1763916641774,-250.0,0.00018211,2]
[394722117,1763916641783,-300.0,0.00018211,2]
[394722118,1763916641793,-207.26354482,0.00018211,2]
[394722119,1763916641802,-195.0,0.00018211,2]
[394722120,1763916641811,-195.0,0.00018212,2]
[394722121,1763916641821,-2500.0,0.00018212,2]
[394722122,1763916641831,-1539.88,0.0001826,2]
[394722123,1763916641840,-221.0,0.00018351,2]
[394722124,1763916641849,-420.0,0.0001843,2]
[394722125,1763916641859,-240.0,0.0001843,2]
[394722126,1763916641868,-1680.0,0.00018453,2]
[394722127,1763916641878,-1539.88,0.00018534,2]
[394722128,1763916641887,-426.78462315,0.00018583,2]
[394722129,1763916641896,-1539.88,0.00018808,2]
[394722130,1763916641905,-168.51329713,0.000189,2]
[394722131,1763916641914,-1000.0,0.0001891,2]
[394722132,1763916642156,-25171.83286437,0.00019,2]
[394722133,1763916642167,-500.0,0.00019,14]
[394722134,1763916642179,-1539.88,0.00019082,2]
[394722135,1763916642188,-190.13197896,0.0001933,2]
[394722136,1763916642202,-7659.83751954,0.00019333,2]
[394722137,1763916642212,-5929.78611991,0.00019333,2]
[394722138,1763916642223,-1539.88,0.00019356,2]
[394722139,1763916642233,-292.17,0.00019462,2]
[394722140,1763916642243,-520.29860042,0.00019566,2]
[394722141,1763916642253,-1539.88,0.0001963,2]
[394722142,1763916642262,-182.02,0.00019865,2]
[394722143,1763916642275,-1539.88910347,0.00019904,2]
[394722144,1763916642285,-500.0,0.00020017,2]
[394722145,1763916642294,-500.0,0.00020017,2]
[394722146,1763916642304,-532.78363872,0.00020017,2]
[394722147,1763916642313,-500.0,0.00020017,2]
[394722148,1763916642323,-500.0,0.00020017,2]
[394722149,1763916642333,-540.0,0.00020132,2]
[394722150,1763916642342,-217.83804072,0.00020175,2]
[394722151,1763916642352,-638.63195679,0.00020185,2]
[394722152,1763916642363,-923.55,0.00020187,2]
[394722153,1763916642374,-2351.0,0.00020259,2]
[394722154,1763916642383,-217.83804072,0.00020459,2]
[394722155,1763916642392,-500.0,0.00020565,2]
[394722156,1763916642401,-1000.0,0.00020565,2]
[394722157,1763916642411,-500.0,0.00020565,2]
[394722158,1763916642421,-500.0,0.00020565,2]
[394722159,1763916642431,-217.83804072,0.0002077,2]
[394722160,1763916642441,-217.83804072,0.00020958,2]
[394722161,1763916642451,-1000.0,0.00021011,2]
[394722162,1763916642462,-641.77897024,0.00021113,2]
[394722163,1763916642471,-217.83804072,0.0002136,2]
[394722164,1763916642480,-217.83804072,0.0002153,2]
[394722165,1763916642489,-213.5948793,0.00021684,2]
[394722166,1763916642499,-1442.81918711,0.00021699,2]
[394722167,1763916642508,-7659.83751954,0.00021767,2]
[394722168,1763916642518,-5929.78611991,0.00021767,2]
[394722169,1763916642528,-217.83804075,0.0002186,2]
[394722170,1763916642540,-282.96407984,0.0002194,2]
[394722171,1763916642551,-3952.89851,0.0002195,2]
[394722172,1763916642564,-250.0,0.00021994,2]
[394722173,1763916642574,-450.0,0.00022,15]
[394722174,1763916642583,-2378.83,0.00022028,2]
[394722175,1763916642592,-520.29860042,0.00022233,2]
[394722176,1763916642602,-150.0,0.0002224,2]
[394722177,1763916642612,-500.0,0.0002224,2]
[394722178,1763916642621,-200.0,0.0002224,2]
[394722179,1763916642631,-2689.0,0.00022242,2]
[394722180,1763916642640,-9142.91155175,0.00022266,2]
[394722181,1763916642650,-2885.03,0.00022267,2]
[394722182,1763916642660,-150.0,0.00022315,2]
[394722183,1763916642669,-168.0,0.00022342,2]
[394722185,1763916642679,-150.0,0.00022389,2]
[394722186,1763916642688,-150.0,0.00022389,2]
[394722187,1763916642697,-150.0,0.00022389,2]
[394722188,1763916642707,-150.0,0.00022389,2]
[394722189,1763916642717,-168.0,0.00022416,2]
[394722190,1763916642728,-168.0,0.00022444,2]
[394722191,1763916642738,-1500.0,0.00022444,2]
[394722192,1763916642748,-168.0,0.00022486,2]
[394722193,1763916642758,-168.0,0.00022487,2]
[394722194,1763916642767,-168.0,0.00022503,2]
[394722195,1763916642777,-168.0,0.00022558,2]
[394722196,1763916642786,-168.0,0.00022711,2]
[394722197,1763916642796,-168.0,0.00022712,2]
[394722198,1763916642805,-168.0,0.00022748,2]
[394722199,1763916642815,-3952.89851,0.0002295,2]
[394722200,1763916642824,-168.0,0.00023008,2]
[394722201,1763916642834,-422.85,0.00023021,2]
[394722202,1763916642843,-168.0,0.00023023,2]
[394722203,1763916642853,-166.3,0.00023098,2]
[394722204,1763916642863,-1000.0,0.00023112,2]
[394722205,1763916642872,-168.0,0.00023131,2]
[394722206,1763916642882,-168.0,0.00023138,2]
[394722207,1763916642891,-168.0,0.00023164,2]
[394722208,1763916642901,-168.0,0.00023176,2]
[394722209,1763916642911,-168.0,0.00023209,2]
[394722210,1763916642921,-150.0,0.00023218,4]
[394722211,1763916642931,-638.63195679,0.00023471,2]
[394722212,1763916642940,-168.0,0.00023497,2]
[394722213,1763916642950,-244.27,0.00023627,2]
[394722214,1763916642959,-150.0,0.00023633,4]
[394722215,1763916642969,-168.0,0.00023653,2]
[394722216,1763916642978,-168.0,0.00023766,2]
[394722217,1763916642987,-3952.89851,0.0002395,2]
[394722218,1763916642997,-168.0,0.00023955,2]
[394722219,1763916643006,-150.0,0.00024047,4]
[394722220,1763916643016,-1218.45664031,0.00024073,10]
[394722221,1763916643025,-1218.45664032,0.00024073,10]
[394722222,1763916643035,-160.00412937,0.00024074,2]
[394722223,1763916643045,-750.35693524,0.00024074,2]
[394722224,1763916643054,-168.0,0.00024138,2]
[394722225,1763916643064,-7659.83751954,0.00024201,2]
[394722226,1763916643073,-5929.78611991,0.00024201,2]
[394722227,1763916643083,-168.0,0.00024224,2]
[394722228,1763916643092,-168.0,0.00024258,2]
[394722229,1763916643102,-168.0,0.00024341,2]
[394722230,1763916643112,-856.4176093,0.0002479,2]
[394722231,1763916643122,-421.15435026,0.00024797,2]
[394722232,1763916643131,-500.0,0.00024799,2]
[394722233,1763916643141,-1315.4,0.00024799,2]
[394722234,1763916643150,-256569.183008,0.000248,2]
[394722235,1763916643159,-150.0,0.00024877,4]
[394722236,1763916643168,-150.00000001,0.00024877,4]
[394722237,1763916643177,-1315.4,0.00024899,2]
[394722238,1763916643187,-520.29860042,0.00024899,2]
[394722239,1763916643201,-263072.686784,0.000249,2]
[394722240,1763916643210,-3952.89851,0.0002495,2]
[394722241,1763916643219,-244.27,0.00024997,2]
[394722242,1763916643228,-1000.0,0.00025213,2]
[394722243,1763916643240,-422.85,0.00025579,120]
[394722244,1763916643250,-1096.0,0.0002587,2]
[394722245,1763916643260,-3952.89851,0.0002595,2]
[394722246,1763916643271,-500.0,0.0002645,2]
[394722247,1763916643280,-500.0,0.0002645,2]
[394722248,1763916643289,-500.0,0.0002645,2]
[394722249,1763916643301,-491.23630963,0.0002645,2]
[394722250,1763916643311,-7659.83751954,0.00026635,2]
[394722251,1763916643321,-5929.78611991,0.00026635,2]
[394722252,1763916643332,-923.55,0.00026676,2]
[394722253,1763916643343,-638.63195679,0.00026757,2]
[394722254,1763916643354,-3952.89851,0.0002695,2]
[394722255,1763916643364,-501.0377101,0.00026998,2]
[394722256,1763916643373,-1015.73736002,0.00026998,2]
[394722257,1763916643382,-1000.0,0.00026998,2]
[394722258,1763916643392,-1096.0,0.00027232,2]
[394722259,1763916643402,-150.0,0.00027376,2]
[394722260,1763916643413,-726.79,0.00027397,2]
[394722261,1763916643423,-726.79,0.00027397,2]
[394722262,1763916643433,-726.79,0.00027397,2]
[394722263,1763916643444,-726.79,0.00027397,2]
[394722264,1763916643454,-177.37,0.000274,7]
[394722265,1763916643466,-308.54,0.000274,7]
[394722266,1763916643475,-421.15435024,0.00027481,2]
[394722267,1763916643485,-487.452036,0.00027546,5]
[394722269,1763916643494,-520.29860042,0.00027566,2]
[394722270,1763916643503,-1000.0,0.00027626,2]
[394722271,1763916643513,-292.17,0.0002763,2]
[394722272,1763916643523,-628.59298334,0.00027973,5]
[394722273,1763916643533,-457.63452341,0.00027973,5]
[394722274,1763916643542,-502.3597061,0.00027973,5]
[394722275,1763916643551,-500.0,0.00027973,5]
[394722276,1763916643561,-597.56,0.00027999,7]
[394722277,1763916643571,-500.0,0.00027999,8]
[394722278,1763916643581,-726.79,0.00027999,2]
[394722279,1763916643591,-150.0,0.00028,14]
[394722280,1763916643600,-17218.12181456,0.00028,2]
[394722281,1763916643609,-27542.40398681,0.00028,2]
[394722282,1763916643619,-16303.38999901,0.00028,4]
[394722283,1763916643629,-151.0,0.00028,7]
[394722284,1763916643639,-151.0,0.00028,7]
[394722285,1763916643648,-179.251115,0.00028,7]
[394722286,1763916643657,-151.0,0.00028,7]
[394722287,1763916643667,-151.0,0.00028,7]
[394722288,1763916643677,-151.0,0.00028,7]
[394722289,1763916643688,-154.783911,0.00028,7]
[394722290,1763916643698,-151.0,0.00028,7]
[394722291,1763916643707,-151.0,0.00028,7]
[394722292,1763916643716,-245.870354,0.00028,7]
[394722293,1763916643725,-158.147499,0.00028,7]
[394722294,1763916643734,-158.147499,0.00028,7]
[394722295,1763916643744,-151.0,0.00028,7]
[394722296,1763916643753,-151.0,0.00028,7]
[394722297,1763916643763,-158.147499,0.00028,7]
[394722298,1763916643772,-158.147499,0.00028,7]
[394722299,1763916643782,-151.0,0.00028,7]
[394722300,1763916643791,-154.33983,0.00028,7]
[394722301,1763916643800,-427.678644,0.00028,7]
[394722302,1763916643810,-151.0,0.00028,7]
[394722303,1763916643819,-151.0,0.00028,7]
[394722304,1763916643828,-427.678644,0.00028,7]
[394722305,1763916643837,-427.678644,0.00028,7]
[394722306,1763916643847,-427.678644,0.00028,7]
[394722307,1763916643856,-151.0,0.00028,7]
[394722308,1763916643867,-151.0,0.00028,7]
[394722309,1763916643877,-151.0,0.00028,7]
[394722310,1763916643887,-151.0,0.00028,7]
[394722311,1763916643896,-151.0,0.00028,7]
[394722312,1763916643906,-151.0,0.00028,7]
[394722313,1763916643916,-151.0,0.00028,7]
[394722314,1763916643925,-151.0,0.00028,7]
[394722315,1763916643934,-151.0,0.00028,7]
[394722316,1763916643943,-151.0,0.00028,7]
[394722317,1763916643952,-566.933075,0.00028,7]
[394722318,1763916643963,-151.0,0.00028,7]
[394722319,1763916643973,-566.933075,0.00028,7]
[394722320,1763916643982,-566.933075,0.00028,7]
[394722321,1763916643992,-566.933075,0.00028,7]
[394722322,1763916644001,-176.097733,0.00028,7]
[394722323,1763916644011,-176.097733,0.00028,7]
[394722324,1763916644021,-176.097733,0.00028,7]
[394722325,1763916644030,-151.0,0.00028,7]
[394722326,1763916644040,-176.097733,0.00028,7]
[394722327,1763916644050,-153.042065,0.00028,7]
[394722328,1763916644061,-367.498355,0.00028,7]
[394722329,1763916644071,-151.0,0.00028,7]
[394722330,1763916644081,-367.498355,0.00028,7]
[394722331,1763916644092,-367.498355,0.00028,7]
[394722332,1763916644102,-500.427649,0.00028,7]
[394722333,1763916644112,-151.0,0.00028,7]
[394722334,1763916644122,-367.498355,0.00028,7]
[394722335,1763916644132,-500.427649,0.00028,7]
[394722336,1763916644142,-151.0,0.00028,7]
[394722337,1763916644151,-151.0,0.00028,7]
[394722338,1763916644161,-500.427649,0.00028,7]
[394722339,1763916644170,-151.0,0.00028,7]
[394722340,1763916644179,-500.427649,0.00028,7]
[394722341,1763916644188,-151.0,0.00028,7]
[394722342,1763916644203,-151.0,0.00028,7]
[394722343,1763916644212,-151.0,0.00028,7]
[394722344,1763916644222,-399.951469,0.00028,7]
[394722345,1763916644231,-399.951469,0.00028,7]
[394722346,1763916644241,-399.951469,0.00028,7]
[394722347,1763916644251,-399.951469,0.00028,7]
[394722348,1763916644261,-151.0,0.00028,7]
[394722349,1763916644272,-181.312728,0.00028,7]
[394722350,1763916644281,-4498.852729,0.00028,7]
[394722351,1763916644290,-218.944956,0.00028,7]
[394722352,1763916644299,-4498.852729,0.00028,7]
[394722353,1763916644308,-4498.852729,0.00028,7]
[394722354,1763916644317,-4498.852729,0.00028,7]
[394722355,1763916644327,-151.0,0.00028,7]
[394722356,1763916644338,-153.369125,0.00028,7]
[394722357,1763916644348,-323.904951,0.00028,7]
[394722358,1763916644357,-1783.447252,0.00028,7]
[394722359,1763916644366,-323.904951,0.00028,7]
[394722360,1763916644376,-1783.447252,0.00028,7]
[394722361,1763916644385,-323.904951,0.00028,7]
[394722362,1763916644394,-1783.447252,0.00028,7]
[394722363,1763916644403,-1783.447252,0.00028,7]
[394722364,1763916644412,-323.904951,0.00028,7]
[394722365,1763916644421,-151.0,0.00028,7]
[394722366,1763916644431,-153.572783,0.00028,7]
[394722367,1763916644441,-151.0,0.00028,7]
[394722368,1763916644450,-151.0,0.00028,7]
[394722369,1763916644460,-151.0,0.00028,7]
[394722370,1763916644470,-422.85,0.00028137,120]
[394722371,1763916644479,-182.02,0.00028235,2]
[394722372,1763916644489,-153.0,0.00028396,2]
[394722373,1763916644498,-153.0,0.00028398,2]
[394722374,1763916644507,-153.0,0.0002841,2]
[394722375,1763916644517,-1050.48261231,0.00028521,5]
[394722376,1763916644527,-1095.0,0.00028593,5]
[394722377,1763916644537,-407.86,0.00028873,2]
[394722378,1763916644547,-7659.83751954,0.00029068,2]
[394722379,1763916644558,-5929.78611991,0.00029068,2]
[394722380,1763916644567,-150.06,0.00029324,2]
[394722381,1763916644577,-407.86,0.00029956,2]
[394722382,1763916644588,-320.40204309,0.0003,10]
[394722383,1763916644598,-177.37,0.0003,7]
[394722384,1763916644609,-638.63195679,0.00030042,2]
[394722385,1763916644619,-421.15435024,0.00030165,2]
[394722386,1763916644629,-520.29860042,0.00030233,15]
[394722387,1763916644643,-610.088,0.00030632,2]
[394722388,1763916644653,-3436.0,0.00030632,2]
[394722389,1763916644673,-586.339,0.00030632,2]
[394722390,1763916644683,-1320.0,0.00030632,2]
[394722391,1763916644694,-822.0,0.00030632,2]
[394722392,1763916644704,-1605.412,0.00030632,2]
[394722393,1763916644714,-755.042,0.00030632,2]
[394722394,1763916644726,-1256.0,0.00030632,2]
[394722395,1763916644736,-561.0,0.00030632,2]
[394722396,1763916644746,-6541.037,0.00030632,2]
[394722397,1763916644760,-153.0,0.00030632,2]
[394722398,1763916644770,-301.72,0.00030632,2]
[394722399,1763916644780,-2659.0,0.00030632,2]
[394722400,1763916644790,-422.85,0.00030695,120]
[394722401,1763916644801,-308.54,0.000307,30]
[394722402,1763916644810,-407.86,0.00031038,2]
[394722403,1763916644820,-2885.03,0.00031173,2]
[394722404,1763916644830,-150.0,0.000314,14]
[394722405,1763916644840,-7659.83751954,0.00031502,2]
[394722406,1763916644849,-5929.78611991,0.00031502,2]
[394722407,1763916644859,-191.16,0.00031507,120]
[394722408,1763916644869,-407.86,0.00032121,2]
[394722409,1763916644879,-292.17,0.00032815,2]
[394722410,1763916644890,-421.15435024,0.00032849,2]
[394722411,1763916644905,-520.29860042,0.000329,15]
[394722412,1763916644918,-1402.0,0.00032951,5]
[394722413,1763916644927,-177.37,0.000331,14]
[394722414,1763916644938,-923.55,0.00033165,2]
[394722415,1763916644947,-308.54,0.000332,30]
[394722416,1763916644958,-407.86,0.00033204,2]
[394722417,1763916644968,-182.02,0.00033295,2]
[394722418,1763916644977,-638.63195679,0.00033328,2]
[394722419,1763916644986,-2000.0,0.000334,2]
[394722420,1763916644996,-609.0,0.00033632,2]
[394722421,1763916645009,-3436.0,0.00033632,2]
[394722422,1763916645019,-576.0,0.00033632,2]
[394722423,1763916645029,-1320.0,0.00033632,2]
[394722424,1763916645043,-822.0,0.00033632,2]
[394722425,1763916645054,-1601.0,0.00033632,2]
[394722426,1763916645065,-659.0,0.00033632,2]
[394722427,1763916645076,-1256.0,0.00033632,2]
[394722428,1763916645089,-561.0,0.00033632,2]
[394722429,1763916645099,-6497.0,0.00033632,2]
[394722430,1763916645108,-150.0,0.00033632,2]
[394722431,1763916645119,-252.0,0.00033632,2]
[394722432,1763916645128,-2659.0,0.00033632,2]
[394722433,1763916645139,-7659.83751954,0.00033936,2]
[394722434,1763916645150,-5929.78611991,0.00033936,2]
[394722435,1763916645160,-500.0,0.00034521,2]
[394722436,1763916645169,-7259.81220287,0.00035,30]
[394722437,1763916645178,-257.819996,0.00035,30]
[394722439,1763916645187,-421.15435024,0.00035532,2]
[394722440,1763916645202,-520.29860042,0.00035566,15]
[394722441,1763916645211,-6269.47719753,0.00035616,120]
[394722442,1763916645221,-308.54,0.000357,30]
[394722443,1763916645230,-177.37,0.000359,14]
[394722444,1763916645240,-1038.56,0.00036,2]
[394722445,1763916645250,-7659.83751954,0.0003637,2]
[394722446,1763916645259,-5929.78611991,0.0003637,2]
[394722447,1763916645269,-638.63195679,0.00036614,2]
[394722448,1763916645280,-150.0,0.0003663,30]
[394722449,1763916645289,-3212.353,0.00036632,2]
[394722450,1763916645298,-576.0,0.00036632,2]
[394722451,1763916645307,-966.559,0.00036632,2]
[394722452,1763916645316,-822.0,0.00036632,2]
[394722453,1763916645325,-1601.0,0.00036632,2]
[394722454,1763916645334,-659.0,0.00036632,2]
[394722455,1763916645344,-1256.0,0.00036632,2]
[394722456,1763916645352,-561.0,0.00036632,2]
[394722457,1763916645362,-6497.0,0.00036632,2]
[394722458,1763916645371,-150.0,0.00036632,2]
[394722459,1763916645380,-252.0,0.00036632,2]
[394722460,1763916645389,-1038.56,0.0003672,2]
[394722461,1763916645402,-597.56,0.00036999,7]
[394722462,1763916645412,-500.0,0.00036999,8]
[394722463,1763916645422,-726.79,0.00036999,2]
[394722464,1763916645432,-42036.17328675,0.00037,5]
[394722465,1763916645441,-505.81376418,0.00037,5]
[394722466,1763916645451,-500.0,0.00037,5]
[394722467,1763916645461,-162.44684358,0.00037,5]
[394722468,1763916645470,-500.0,0.00037,5]
[394722469,1763916645482,-500.0,0.00037,5]
[394722470,1763916645493,-500.0,0.00037,5]
[394722471,1763916645503,-500.0,0.00037,5]
[394722472,1763916645513,-169.98112419,0.00037,5]
[394722473,1763916645523,-520.88092567,0.00037,5]
[394722474,1763916645533,-166.21595802,0.00037,5]
[394722475,1763916645543,-500.0,0.00037,5]
[394722476,1763916645554,-500.0,0.00037,5]
[394722477,1763916645563,-500.0,0.00037,5]
[394722478,1763916645573,-200.0,0.00037,5]
[394722479,1763916645582,-500.0,0.00037,5]
[394722480,1763916645592,-215.29932167,0.00037,5]
[394722481,1763916645605,-500.86714975,0.00037,5]
[394722482,1763916645615,-500.0,0.00037,5]
[394722483,1763916645625,-500.0,0.00037,5]
[394722484,1763916645634,-1441.0,0.000371,2]
[394722486,1763916645644,-1038.56,0.0003744,2]
[394722488,1763916645653,-1098.56,0.00037452,2]
[394722490,1763916645663,-267.46074303,0.00037472,30]
[394722492,1763916645673,-500.0,0.00037544,5]
[394722493,1763916645683,-500.0,0.00037548,5]
[394722495,1763916645692,-501.16645405,0.00037548,5]
[394722496,1763916645703,-1146.75971961,0.00037548,5]
[394722497,1763916645713,-268.06848757,0.00037548,5]
[394722498,1763916645723,-1000.0,0.00037548,5]